[Event "Late-Titled-Tuesday-Blitz-January-23-2024"]
[Site "Chess.com"]
[Date "2024.01.23"]
[Round "4"]
[White "Boninknights"]
[Black "valeriocarnicelli"]
[Result "1/2-1/2"]
[WhiteElo "2374"]
[BlackElo "2527"]
[TimeControl "180+1"]
[EndTime "14:38:55 PST"]
[Termination "Game drawn - insufficient material"]

1. b3 {[%clk 0:02:57.1]} 1... d5 {[%clk 0:02:57.7]} 2. e3 {[%clk 0:02:56.2]}
2... Nf6 {[%clk 0:02:56.9]} 3. Bb2 {[%clk 0:02:54.6]} 3... g6 {[%clk 0:02:56.6]}
4. Bxf6 {[%clk 0:02:53.3]} 4... exf6 {[%clk 0:02:57.5]} 5. d4 {[%clk 0:02:52.6]}
5... Bd6 {[%clk 0:02:54.5]} 6. Bd3 {[%clk 0:02:50.3]} 6... O-O {[%clk
0:02:54.2]} 7. Qf3 {[%clk 0:02:49.6]} 7... Nc6 {[%clk 0:02:44.7]} 8. c3 {[%clk
0:02:46.7]} 8... Ne7 {[%clk 0:02:39.5]} 9. g4 {[%clk 0:02:45.3]} 9... c5 {[%clk
0:02:36.1]} 10. Ne2 {[%clk 0:02:42.1]} 10... f5 {[%clk 0:02:33.6]} 11. h3 {[%clk
0:02:39.4]} 11... a5 {[%clk 0:02:29.7]} 12. a4 {[%clk 0:02:36.9]} 12... Re8
{[%clk 0:02:25.9]} 13. Nd2 {[%clk 0:02:35]} 13... b6 {[%clk 0:02:16.6]} 14. Kd1
{[%clk 0:02:27.9]} 14... Ra7 {[%clk 0:02:13.3]} 15. Kc2 {[%clk 0:02:26.3]} 15...
Rc7 {[%clk 0:02:13.6]} 16. Kb2 {[%clk 0:02:20.8]} 16... Be6 {[%clk 0:02:10.6]}
17. Rag1 {[%clk 0:02:18.5]} 17... Kh8 {[%clk 0:02:03.1]} 18. Ng3 {[%clk
0:02:17]} 18... Qc8 {[%clk 0:01:58.6]} 19. gxf5 {[%clk 0:02:11.1]} 19... Nxf5
{[%clk 0:01:58.7]} 20. Nxf5 {[%clk 0:02:10.1]} 20... Bxf5 {[%clk 0:01:59]} 21.
Bxf5 {[%clk 0:02:09.2]} 21... Qxf5 {[%clk 0:01:59.5]} 22. Qxf5 {[%clk
0:02:08.3]} 22... gxf5 {[%clk 0:02:00.4]} 23. Rg5 {[%clk 0:01:56.2]} 23... cxd4
{[%clk 0:02:00.3]} 24. cxd4 {[%clk 0:01:50.7]} 24... Bb4 {[%clk 0:01:50.1]} 25.
Nf3 {[%clk 0:01:45.4]} 25... Rec8 {[%clk 0:01:49.7]} 26. Rhg1 {[%clk 0:01:35.1]}
26... Rc2+ {[%clk 0:01:11.2]} 27. Kb1 {[%clk 0:01:34.5]} 27... f6 {[%clk
0:00:45.9]} 28. Rg8+ {[%clk 0:01:29.8]} 28... Rxg8 {[%clk 0:00:42.5]} 29. Rxg8+
{[%clk 0:01:29]} 29... Kxg8 {[%clk 0:00:43.4]} 30. Kxc2 {[%clk 0:01:27.8]} 30...
Kg7 {[%clk 0:00:38]} 31. Nh4 {[%clk 0:01:25.7]} 31... Kh6 {[%clk 0:00:27.8]} 32.
Nxf5+ {[%clk 0:01:23.8]} 32... Kg5 {[%clk 0:00:28.3]} 33. Ng7 {[%clk 0:01:13.8]}
33... Kh4 {[%clk 0:00:27.1]} 34. Ne8 {[%clk 0:01:11]} 34... Be7 {[%clk
0:00:23.4]} 35. Nc7 {[%clk 0:01:10.8]} 35... Kxh3 {[%clk 0:00:23.5]} 36. Nxd5
{[%clk 0:01:10.7]} 36... Bd8 {[%clk 0:00:24.2]} 37. Kd3 {[%clk 0:01:09.7]} 37...
h5 {[%clk 0:00:20.7]} 38. Ke2 {[%clk 0:01:06.3]} 38... Kg4 {[%clk 0:00:19.1]}
39. f3+ {[%clk 0:01:04.9]} 39... Kg3 {[%clk 0:00:19]} 40. e4 {[%clk 0:01:02]}
40... h4 {[%clk 0:00:18.6]} 41. e5 {[%clk 0:00:55.4]} 41... fxe5 {[%clk
0:00:18]} 42. dxe5 {[%clk 0:00:55.2]} 42... h3 {[%clk 0:00:18.9]} 43. Ne3 {[%clk
0:00:49.7]} 43... h2 {[%clk 0:00:10.8]} 44. Nf1+ {[%clk 0:00:48.9]} 44... Kg2
{[%clk 0:00:11.6]} 45. Nxh2 {[%clk 0:00:48.8]} 45... Kxh2 {[%clk 0:00:12.5]} 46.
Ke3 {[%clk 0:00:46.2]} 46... Kg3 {[%clk 0:00:13]} 47. Ke4 {[%clk 0:00:46.1]}
47... Kf2 {[%clk 0:00:10.4]} 48. f4 {[%clk 0:00:44.8]} 48... Kg3 {[%clk
0:00:07.8]} 49. f5 {[%clk 0:00:43.7]} 49... Kg4 {[%clk 0:00:08.4]} 50. f6 {[%clk
0:00:42.6]} 50... Kg5 {[%clk 0:00:08.9]} 51. Kd5 {[%clk 0:00:41.4]} 51... Kf5
{[%clk 0:00:06.9]} 52. Kc6 {[%clk 0:00:35.9]} 52... Ke6 {[%clk 0:00:05.4]} 53.
Kb5 {[%clk 0:00:27.9]} 53... Kf7 {[%clk 0:00:03.6]} 54. b4 {[%clk 0:00:27]}
54... axb4 {[%clk 0:00:03.3]} 55. Kxb4 {[%clk 0:00:27.1]} 55... Ke6 {[%clk
0:00:04]} 56. Kb5 {[%clk 0:00:26.6]} 56... Bc7 {[%clk 0:00:03.7]} 57. Kc6 {[%clk
0:00:24.3]} 57... Bd8 {[%clk 0:00:04.2]} 58. Kb7 {[%clk 0:00:21.4]} 58... Kxe5
{[%clk 0:00:02.8]} 59. f7 {[%clk 0:00:20.3]} 59... Be7 {[%clk 0:00:03.2]} 60.
Kxb6 {[%clk 0:00:20.4]} 60... Ke6 {[%clk 0:00:02.8]} 61. a5 {[%clk 0:00:19.8]}
61... Kxf7 {[%clk 0:00:03.1]} 62. a6 {[%clk 0:00:20]} 62... Bg5 {[%clk
0:00:03.3]} 63. a7 {[%clk 0:00:20]} 63... Be3+ {[%clk 0:00:04]} 64. Kb7 {[%clk
0:00:20.2]} 64... Bxa7 {[%clk 0:00:04.9]} 1/2-1/2

[Event "Late-Titled-Tuesday-Blitz-January-23-2024"]
[Site "Chess.com"]
[Date "2024.01.23"]
[Round "4"]
[White "Jospem"]
[Black "tptagain"]
[Result "0-1"]
[WhiteElo "3087"]
[BlackElo "2938"]
[TimeControl "180+1"]
[EndTime "14:39:00 PST"]
[Termination "tptagain won on time"]

1. e4 {[%clk 0:03:00.9]} 1... c5 {[%clk 0:03:00.2]} 2. Nf3 {[%clk 0:03:01]} 2...
Nc6 {[%clk 0:03:00.7]} 3. c3 {[%clk 0:03:01.7]} 3... Nf6 {[%clk 0:03:00.4]} 4.
Bd3 {[%clk 0:03:01.5]} 4... d5 {[%clk 0:02:47.2]} 5. e5 {[%clk 0:03:01.5]} 5...
Nd7 {[%clk 0:02:46.5]} 6. Bb5 {[%clk 0:03:01.3]} 6... e6 {[%clk 0:02:45.6]} 7.
d4 {[%clk 0:02:59.3]} 7... Be7 {[%clk 0:02:45.1]} 8. O-O {[%clk 0:02:59.1]} 8...
O-O {[%clk 0:02:44.5]} 9. Ba4 {[%clk 0:02:59.2]} 9... Nb6 {[%clk 0:02:39.7]} 10.
Bb3 {[%clk 0:02:54]} 10... Bd7 {[%clk 0:02:35.7]} 11. Re1 {[%clk 0:02:47.9]}
11... Rc8 {[%clk 0:02:30.1]} 12. Be3 {[%clk 0:02:41.9]} 12... cxd4 {[%clk
0:02:28.2]} 13. Bxd4 {[%clk 0:02:37.4]} 13... Nxd4 {[%clk 0:02:23.9]} 14. Nxd4
{[%clk 0:02:38.3]} 14... Nc4 {[%clk 0:02:17.5]} 15. Bxc4 {[%clk 0:02:38.2]}
15... Rxc4 {[%clk 0:02:15.3]} 16. Nd2 {[%clk 0:02:38.3]} 16... Rc8 {[%clk
0:02:15.3]} 17. N2f3 {[%clk 0:02:31.7]} 17... b5 {[%clk 0:02:14.7]} 18. Qd2
{[%clk 0:02:31.7]} 18... a5 {[%clk 0:02:12.8]} 19. a3 {[%clk 0:02:31.8]} 19...
Qb6 {[%clk 0:02:12.6]} 20. b4 {[%clk 0:02:27.3]} 20... Rc7 {[%clk 0:02:07.9]}
21. h4 {[%clk 0:02:25.5]} 21... Rfc8 {[%clk 0:02:04.6]} 22. Re3 {[%clk
0:02:25.3]} 22... Ra8 {[%clk 0:01:59.2]} 23. Rc1 {[%clk 0:02:17.6]} 23... axb4
{[%clk 0:01:58.5]} 24. axb4 {[%clk 0:02:18.5]} 24... Rca7 {[%clk 0:01:58.1]} 25.
Kh2 {[%clk 0:02:13.8]} 25... Ra2 {[%clk 0:01:56.5]} 26. Rc2 {[%clk 0:02:14]}
26... Ra1 {[%clk 0:01:49.9]} 27. Re1 {[%clk 0:02:14.1]} 27... Rxe1 {[%clk
0:01:49.3]} 28. Qxe1 {[%clk 0:02:15]} 28... h6 {[%clk 0:01:47.9]} 29. Qd2 {[%clk
0:02:11.2]} 29... Qa7 {[%clk 0:01:45.5]} 30. Rc1 {[%clk 0:02:06.5]} 30... Qa2
{[%clk 0:01:43.7]} 31. Qxa2 {[%clk 0:02:04.2]} 31... Rxa2 {[%clk 0:01:43.4]} 32.
Rc2 {[%clk 0:02:05.1]} 32... Ra3 {[%clk 0:01:40.3]} 33. g4 {[%clk 0:01:45.7]}
33... f6 {[%clk 0:01:39.3]} 34. Kg2 {[%clk 0:01:42.5]} 34... Kf7 {[%clk
0:01:29.6]} 35. g5 {[%clk 0:01:21.2]} 35... hxg5 {[%clk 0:01:27.8]} 36. hxg5
{[%clk 0:01:22.1]} 36... Bd8 {[%clk 0:01:16.4]} 37. Kg3 {[%clk 0:00:54.6]} 37...
Bc7 {[%clk 0:01:09.2]} 38. Kf4 {[%clk 0:00:54.7]} 38... Ra1 {[%clk 0:01:08.9]}
39. Re2 {[%clk 0:00:54.2]} 39... Kg6 {[%clk 0:00:53.7]} 40. gxf6 {[%clk
0:00:43]} 40... gxf6 {[%clk 0:00:53.6]} 41. Kg4 {[%clk 0:00:43.6]} 41... Ra3
{[%clk 0:00:47.9]} 42. Nh4+ {[%clk 0:00:32.1]} 42... Kf7 {[%clk 0:00:46.8]} 43.
f4 {[%clk 0:00:33]} 43... Rxc3 {[%clk 0:00:42.6]} 44. Nhf3 {[%clk 0:00:33.7]}
44... Rc4 {[%clk 0:00:30.9]} 45. Rh2 {[%clk 0:00:19.8]} 45... fxe5 {[%clk
0:00:28.4]} 46. fxe5 {[%clk 0:00:20.7]} 46... Bb6 {[%clk 0:00:27.1]} 47. Rd2
{[%clk 0:00:21]} 47... Rxb4 {[%clk 0:00:26.8]} 48. Kg5 {[%clk 0:00:21.4]} 48...
Rc4 {[%clk 0:00:21.4]} 49. Kh6 {[%clk 0:00:21.9]} 49... b4 {[%clk 0:00:19.7]}
50. Kh7 {[%clk 0:00:21.1]} 50... Ke7 {[%clk 0:00:16.6]} 51. Kg7 {[%clk
0:00:18.7]} 51... Ba4 {[%clk 0:00:16.6]} 52. Ne2 {[%clk 0:00:08.8]} 52... b3
{[%clk 0:00:15.3]} 53. Nfd4 {[%clk 0:00:04.2]} 53... Bxd4 {[%clk 0:00:14.4]} 54.
Nxd4 {[%clk 0:00:05.1]} 54... b2 {[%clk 0:00:12.1]} 55. Rxb2 {[%clk 0:00:03.5]}
55... Rxd4 {[%clk 0:00:12.5]} 56. Rb7+ {[%clk 0:00:04.3]} 56... Bd7 {[%clk
0:00:13]} 57. Rb4 {[%clk 0:00:05]} 57... Rxb4 {[%clk 0:00:12.9]} 58. Kg6 {[%clk
0:00:05.5]} 58... Re4 {[%clk 0:00:12.9]} 59. Kg5 {[%clk 0:00:06.3]} 59... Rxe5+
{[%clk 0:00:13.1]} 60. Kf4 {[%clk 0:00:07.2]} 60... Re4+ {[%clk 0:00:13.5]} 61.
Kf3 {[%clk 0:00:08.1]} 61... Kf6 {[%clk 0:00:13.7]} 62. Kf2 {[%clk 0:00:09]}
62... Kf5 {[%clk 0:00:14.1]} 63. Kg2 {[%clk 0:00:09.9]} 63... Kg4 {[%clk
0:00:14]} 64. Kg1 {[%clk 0:00:10.8]} 64... Kg3 {[%clk 0:00:14]} 65. Kf1 {[%clk
0:00:11.3]} 65... Re3 {[%clk 0:00:14.3]} 0-1

[Event "Late-Titled-Tuesday-Blitz-January-23-2024"]
[Site "Chess.com"]
[Date "2024.01.23"]
[Round "4"]
[White "C_K_G"]
[Black "youngdinousaur"]
[Result "0-1"]
[WhiteElo "2133"]
[BlackElo "2323"]
[TimeControl "180+1"]
[EndTime "14:39:05 PST"]
[Termination "youngdinousaur won by resignation"]

1. e4 {[%clk 0:03:00.9]} 1... c5 {[%clk 0:02:42.8]} 2. Nf3 {[%clk 0:03:01.8]}
2... e6 {[%clk 0:02:42.7]} 3. d4 {[%clk 0:03:02.7]} 3... cxd4 {[%clk 0:02:43.6]}
4. Nxd4 {[%clk 0:03:03.3]} 4... Nf6 {[%clk 0:02:44.2]} 5. Nc3 {[%clk 0:03:03.8]}
5... Nc6 {[%clk 0:02:44.6]} 6. Be3 {[%clk 0:02:59.4]} 6... Bb4 {[%clk
0:02:44.1]} 7. Bd3 {[%clk 0:02:57.8]} 7... d5 {[%clk 0:02:43]} 8. exd5 {[%clk
0:02:57.5]} 8... Nxd5 {[%clk 0:02:42.3]} 9. Nxc6 {[%clk 0:02:53.6]} 9... bxc6
{[%clk 0:02:43.2]} 10. Bd2 {[%clk 0:02:51.6]} 10... O-O {[%clk 0:02:42.3]} 11.
O-O {[%clk 0:02:50.7]} 11... Be7 {[%clk 0:02:36.7]} 12. a3 {[%clk 0:02:36.8]}
12... Rb8 {[%clk 0:02:34.3]} 13. b4 {[%clk 0:02:34.5]} 13... a5 {[%clk
0:02:33.6]} 14. bxa5 {[%clk 0:02:04.6]} 14... Bf6 {[%clk 0:02:30.8]} 15. Nxd5
{[%clk 0:02:00.1]} 15... Bxa1 {[%clk 0:02:15.6]} 16. Nc3 {[%clk 0:01:35.3]}
16... Bb2 {[%clk 0:02:11.1]} 17. Qh5 {[%clk 0:01:26.7]} 17... g6 {[%clk
0:02:06.2]} 18. Qe5 {[%clk 0:01:11.6]} 18... Ba6 {[%clk 0:01:19.2]} 19. Bh6
{[%clk 0:01:08.1]} 19... f6 {[%clk 0:01:19.1]} 20. Qxe6+ {[%clk 0:01:07.8]}
20... Kh8 {[%clk 0:01:19]} 21. Bxa6 {[%clk 0:00:39.1]} 21... Bxc3 {[%clk
0:01:16.2]} 22. Bxf8 {[%clk 0:00:20.3]} 22... Qxf8 {[%clk 0:01:17.1]} 23. Qxc6
{[%clk 0:00:19.9]} 23... Qxa3 {[%clk 0:01:14.8]} 24. Qc7 {[%clk 0:00:15.3]}
24... Rf8 {[%clk 0:01:09.4]} 25. Bc4 {[%clk 0:00:11.1]} 25... Qxa5 {[%clk
0:01:03.4]} 26. Qd7 {[%clk 0:00:10.5]} 26... Qc5 {[%clk 0:00:58.7]} 27. Bb3
{[%clk 0:00:10.8]} 27... Bd4 {[%clk 0:00:53.2]} 28. g3 {[%clk 0:00:11.2]} 28...
Qa7 {[%clk 0:00:45.8]} 29. Qd5 {[%clk 0:00:10]} 29... Kg7 {[%clk 0:00:39]} 30.
Kg2 {[%clk 0:00:09.7]} 30... Be5 {[%clk 0:00:34.2]} 31. Re1 {[%clk 0:00:08.9]}
31... h5 {[%clk 0:00:26.8]} 32. f4 {[%clk 0:00:09.1]} 32... Bc3 {[%clk
0:00:20.4]} 33. Re2 {[%clk 0:00:08.4]} 33... Qd4 {[%clk 0:00:19.3]} 34. Qxd4
{[%clk 0:00:08]} 34... Bxd4 {[%clk 0:00:20.2]} 35. Re7+ {[%clk 0:00:08.3]} 35...
Kh6 {[%clk 0:00:20.3]} 36. Kf3 {[%clk 0:00:07]} 36... g5 {[%clk 0:00:18.8]} 37.
Bc4 {[%clk 0:00:06]} 37... g4+ {[%clk 0:00:17.1]} 38. Ke4 {[%clk 0:00:06.4]}
38... Bg1 {[%clk 0:00:17.2]} 39. Bd3 {[%clk 0:00:06.2]} 39... f5+ {[%clk
0:00:15.4]} 40. Ke5 {[%clk 0:00:04.8]} 40... Bxh2 {[%clk 0:00:15.9]} 41. Bxf5
{[%clk 0:00:05.5]} 41... Rh8 {[%clk 0:00:04]} 42. Kf6 {[%clk 0:00:05.4]} 42...
Bxg3 {[%clk 0:00:03]} 43. Rg7 {[%clk 0:00:04.8]} 43... Rf8+ {[%clk 0:00:01.4]}
44. Rf7 {[%clk 0:00:05.3]} 44... Rxf7+ {[%clk 0:00:01.2]} 45. Kxf7 {[%clk
0:00:05.6]} 45... Bxf4 {[%clk 0:00:01.9]} 46. c4 {[%clk 0:00:06]} 46... g3
{[%clk 0:00:02]} 47. Bh3 {[%clk 0:00:05]} 47... h4 {[%clk 0:00:02.9]} 48. c5
{[%clk 0:00:05.4]} 48... Kg5 {[%clk 0:00:03.8]} 49. c6 {[%clk 0:00:05.9]} 49...
Bd6 {[%clk 0:00:03.7]} 50. Ke6 {[%clk 0:00:06.1]} 50... Bf4 {[%clk 0:00:03.1]}
51. Kd7 {[%clk 0:00:04.7]} 51... Kf6 {[%clk 0:00:02.6]} 52. c7 {[%clk
0:00:05.6]} 52... Bxc7 {[%clk 0:00:02.9]} 53. Kxc7 {[%clk 0:00:06.5]} 53... Ke5
{[%clk 0:00:03.8]} 54. Kc6 {[%clk 0:00:07.3]} 54... Kf4 {[%clk 0:00:04.7]} 55.
Kd5 {[%clk 0:00:07.8]} 55... Kf3 {[%clk 0:00:05.6]} 56. Ke5 {[%clk 0:00:08]}
56... g2 {[%clk 0:00:06.2]} 57. Bxg2+ {[%clk 0:00:07.9]} 57... Kxg2 {[%clk
0:00:07.1]} 58. Kf4 {[%clk 0:00:08.5]} 58... h3 {[%clk 0:00:08]} 59. Kg4 {[%clk
0:00:09.3]} 59... h2 {[%clk 0:00:08.9]} 0-1

[Event "Late-Titled-Tuesday-Blitz-January-23-2024"]
[Site "Chess.com"]
[Date "2024.01.23"]
[Round "4"]
[White "Quattroporte300"]
[Black "cristiano78"]
[Result "1-0"]
[WhiteElo "2428"]
[BlackElo "2217"]
[TimeControl "180+1"]
[EndTime "14:39:06 PST"]
[Termination "Quattroporte300 won on time"]

1. e4 {[%clk 0:03:00.9]} 1... c5 {[%clk 0:02:58.8]} 2. c3 {[%clk 0:02:59.1]}
2... d6 {[%clk 0:02:57.7]} 3. d4 {[%clk 0:02:57.8]} 3... Nf6 {[%clk 0:02:57]} 4.
Bd3 {[%clk 0:02:55.3]} 4... Qc7 {[%clk 0:02:56]} 5. Nf3 {[%clk 0:02:55.3]} 5...
Bg4 {[%clk 0:02:55.5]} 6. O-O {[%clk 0:02:50.9]} 6... Nbd7 {[%clk 0:02:53.8]} 7.
h3 {[%clk 0:02:50]} 7... Bxf3 {[%clk 0:02:53.1]} 8. Qxf3 {[%clk 0:02:50.9]} 8...
e5 {[%clk 0:02:53.2]} 9. d5 {[%clk 0:02:44.7]} 9... c4 {[%clk 0:02:49]} 10. Bc2
{[%clk 0:02:38.3]} 10... Rc8 {[%clk 0:02:43.3]} 11. Be3 {[%clk 0:02:34.6]} 11...
b5 {[%clk 0:02:40.6]} 12. Nd2 {[%clk 0:02:34.5]} 12... Be7 {[%clk 0:02:38]} 13.
g3 {[%clk 0:02:24.5]} 13... Nc5 {[%clk 0:02:36.7]} 14. Qe2 {[%clk 0:02:22.1]}
14... O-O {[%clk 0:02:30.3]} 15. f4 {[%clk 0:02:21.7]} 15... exf4 {[%clk
0:02:28.9]} 16. gxf4 {[%clk 0:02:20.4]} 16... Rfe8 {[%clk 0:02:28.8]} 17. Kh2
{[%clk 0:02:14]} 17... Bf8 {[%clk 0:02:27.7]} 18. Qf3 {[%clk 0:02:00.3]} 18...
g6 {[%clk 0:02:19.9]} 19. Bd4 {[%clk 0:01:56.2]} 19... Bg7 {[%clk 0:02:12.3]}
20. Rae1 {[%clk 0:01:56.3]} 20... Qd7 {[%clk 0:01:58.7]} 21. Re2 {[%clk
0:01:40.8]} 21... Nh5 {[%clk 0:01:53.1]} 22. e5 {[%clk 0:01:29.4]} 22... dxe5
{[%clk 0:01:44]} 23. fxe5 {[%clk 0:01:29.2]} 23... Nd3 {[%clk 0:01:31.5]} 24.
Bxd3 {[%clk 0:00:58.4]} 24... cxd3 {[%clk 0:01:30]} 25. Re3 {[%clk 0:00:53.1]}
25... Rcd8 {[%clk 0:01:13.5]} 26. d6 {[%clk 0:00:53.1]} 26... f6 {[%clk
0:01:04.8]} 27. exf6 {[%clk 0:00:31.1]} 27... Qxd6+ {[%clk 0:01:04.3]} 28. Kg2
{[%clk 0:00:21.9]} 28... Rxe3 {[%clk 0:00:55.2]} 29. f7+ {[%clk 0:00:19.6]}
29... Kf8 {[%clk 0:00:53.9]} 30. Bxg7+ {[%clk 0:00:13.9]} 30... Kxg7 {[%clk
0:00:44.9]} 31. Qxe3 {[%clk 0:00:14.8]} 31... Rf8 {[%clk 0:00:38.2]} 32. Rf3
{[%clk 0:00:06.9]} 32... Rxf7 {[%clk 0:00:34.1]} 33. Rxf7+ {[%clk 0:00:07.2]}
33... Kxf7 {[%clk 0:00:33.5]} 34. Qxa7+ {[%clk 0:00:07.8]} 34... Ke6 {[%clk
0:00:28]} 35. Qe3+ {[%clk 0:00:07.6]} 35... Qe5 {[%clk 0:00:23.7]} 36. Qxe5+
{[%clk 0:00:05.9]} 36... Kxe5 {[%clk 0:00:23.7]} 37. Kf3 {[%clk 0:00:06.2]}
37... Nf4 {[%clk 0:00:21.8]} 38. h4 {[%clk 0:00:06.5]} 38... Nd5 {[%clk
0:00:20.8]} 39. Ne4 {[%clk 0:00:02.9]} 39... h6 {[%clk 0:00:19.8]} 40. Nd2
{[%clk 0:00:02.9]} 40... g5 {[%clk 0:00:19.3]} 41. hxg5 {[%clk 0:00:03.6]} 41...
hxg5 {[%clk 0:00:18.9]} 42. a3 {[%clk 0:00:04]} 42... Kf5 {[%clk 0:00:15.8]} 43.
Nf1 {[%clk 0:00:03.2]} 43... g4+ {[%clk 0:00:15.1]} 44. Kf2 {[%clk 0:00:02.4]}
44... Kf4 {[%clk 0:00:13.9]} 45. Ng3 {[%clk 0:00:02.6]} 45... Nf6 {[%clk
0:00:10.5]} 46. Nf1 {[%clk 0:00:01.8]} 46... Ne4+ {[%clk 0:00:10.2]} 47. Ke1
{[%clk 0:00:02.4]} 47... Kf3 {[%clk 0:00:07.8]} 48. c4 {[%clk 0:00:03]} 48...
bxc4 {[%clk 0:00:07.2]} 49. a4 {[%clk 0:00:03.7]} 49... g3 {[%clk 0:00:05.2]}
50. Nxg3 {[%clk 0:00:02.6]} 50... Nxg3 {[%clk 0:00:04.8]} 51. a5 {[%clk
0:00:03.3]} 51... Ke3 {[%clk 0:00:04.4]} 52. a6 {[%clk 0:00:03.7]} 52... d2+
{[%clk 0:00:04.6]} 53. Kd1 {[%clk 0:00:04.4]} 53... Ne4 {[%clk 0:00:02.7]} 54.
a7 {[%clk 0:00:05]} 54... Nf2+ {[%clk 0:00:02.5]} 55. Kc2 {[%clk 0:00:05.9]}
55... d1=Q+ {[%clk 0:00:01.7]} 56. Kc3 {[%clk 0:00:06.8]} 56... Qd3+ {[%clk
0:00:01.3]} 57. Kb4 {[%clk 0:00:06.7]} 57... Qb3+ {[%clk 0:00:01.4]} 58. Kc5
{[%clk 0:00:07.3]} 1-0

[Event "Late-Titled-Tuesday-Blitz-January-23-2024"]
[Site "Chess.com"]
[Date "2024.01.23"]
[Round "4"]
[White "lucachess49"]
[Black "alexrustemov"]
[Result "0-1"]
[WhiteElo "2517"]
[BlackElo "2850"]
[TimeControl "180+1"]
[EndTime "14:39:11 PST"]
[Termination "alexrustemov won on time"]

1. e4 {[%clk 0:03:00.9]} 1... e6 {[%clk 0:02:59.9]} 2. d4 {[%clk 0:02:50.2]}
2... d5 {[%clk 0:03:00.1]} 3. Nd2 {[%clk 0:02:50.5]} 3... dxe4 {[%clk
0:03:00.1]} 4. Nxe4 {[%clk 0:02:50.2]} 4... Bd7 {[%clk 0:03:00.6]} 5. Bd3 {[%clk
0:02:43.7]} 5... Bc6 {[%clk 0:03:00.9]} 6. Nf3 {[%clk 0:02:38.3]} 6... Nd7
{[%clk 0:03:01.3]} 7. O-O {[%clk 0:02:38.1]} 7... Ngf6 {[%clk 0:03:01.8]} 8. Qe2
{[%clk 0:02:36.3]} 8... Nxe4 {[%clk 0:02:59.5]} 9. Bxe4 {[%clk 0:02:37.2]} 9...
Bxe4 {[%clk 0:02:59.8]} 10. Qxe4 {[%clk 0:02:37.4]} 10... c6 {[%clk 0:03:00.4]}
11. c4 {[%clk 0:02:34.6]} 11... Bd6 {[%clk 0:02:59.8]} 12. b3 {[%clk 0:02:29.8]}
12... O-O {[%clk 0:02:59.4]} 13. Bg5 {[%clk 0:02:28.2]} 13... Qc7 {[%clk
0:02:53.6]} 14. Rad1 {[%clk 0:02:27.4]} 14... Rfe8 {[%clk 0:02:52.7]} 15. Bh4
{[%clk 0:02:26.7]} 15... h6 {[%clk 0:02:49.7]} 16. Rfe1 {[%clk 0:02:25.2]} 16...
Nf8 {[%clk 0:02:43.6]} 17. Bg3 {[%clk 0:02:22.8]} 17... Rad8 {[%clk 0:02:42.6]}
18. Ne5 {[%clk 0:02:16.2]} 18... Nd7 {[%clk 0:02:26.6]} 19. f4 {[%clk 0:01:49]}
19... c5 {[%clk 0:02:19.2]} 20. d5 {[%clk 0:01:26.4]} 20... exd5 {[%clk
0:02:13.4]} 21. Qxd5 {[%clk 0:01:03]} 21... Bxe5 {[%clk 0:02:06.6]} 22. fxe5
{[%clk 0:01:02.8]} 22... Nf8 {[%clk 0:01:51.1]} 23. e6 {[%clk 0:00:36.4]} 23...
Rxd5 {[%clk 0:01:42.2]} 24. Bxc7 {[%clk 0:00:36.4]} 24... Rxd1 {[%clk 0:01:39]}
25. exf7+ {[%clk 0:00:36.2]} 25... Kxf7 {[%clk 0:01:38.8]} 26. Rxd1 {[%clk
0:00:37.1]} 26... Ne6 {[%clk 0:01:32.6]} 27. Be5 {[%clk 0:00:28.2]} 27... Re7
{[%clk 0:01:26.2]} 28. Rd5 {[%clk 0:00:26.4]} 28... b6 {[%clk 0:01:26.1]} 29. h4
{[%clk 0:00:24.5]} 29... h5 {[%clk 0:01:19.6]} 30. Kh2 {[%clk 0:00:22.7]} 30...
g6 {[%clk 0:01:19.5]} 31. g4 {[%clk 0:00:22.6]} 31... hxg4 {[%clk 0:01:16.1]}
32. Kg3 {[%clk 0:00:22.5]} 32... Ng7 {[%clk 0:01:03]} 33. Bxg7 {[%clk 0:00:14]}
33... Kxg7 {[%clk 0:01:03]} 34. Kxg4 {[%clk 0:00:14.4]} 34... Kh6 {[%clk
0:01:00.3]} 35. Rd2 {[%clk 0:00:09.3]} 35... Re4+ {[%clk 0:00:59.7]} 36. Kg3
{[%clk 0:00:09.7]} 36... Re3+ {[%clk 0:00:59.6]} 37. Kg4 {[%clk 0:00:09.3]}
37... Re4+ {[%clk 0:00:55.4]} 38. Kg3 {[%clk 0:00:09.3]} 38... Re6 {[%clk
0:00:54.5]} 39. Kg4 {[%clk 0:00:09.2]} 39... a5 {[%clk 0:00:54.2]} 40. Kg3
{[%clk 0:00:08.1]} 40... a4 {[%clk 0:00:54.3]} 41. Kg4 {[%clk 0:00:08.1]} 41...
a3 {[%clk 0:00:54.6]} 42. Rd8 {[%clk 0:00:05.8]} 42... Re2 {[%clk 0:00:51]} 43.
Rh8+ {[%clk 0:00:01.3]} 43... Kg7 {[%clk 0:00:49.9]} 44. Rb8 {[%clk 0:00:02.2]}
44... Rxa2 {[%clk 0:00:49.8]} 45. Rxb6 {[%clk 0:00:02.9]} 45... Rb2 {[%clk
0:00:45.6]} 46. Ra6 {[%clk 0:00:02.7]} 46... Rxb3 {[%clk 0:00:45.5]} 47. Kf4
{[%clk 0:00:03.4]} 47... Kh6 {[%clk 0:00:44.6]} 48. Ke5 {[%clk 0:00:03.4]} 48...
Rd3 {[%clk 0:00:34.9]} 49. Ke4 {[%clk 0:00:01.9]} 49... Rd4+ {[%clk 0:00:35]}
50. Kf3 {[%clk 0:00:01.9]} 50... Rxc4 {[%clk 0:00:31.9]} 51. Rxa3 {[%clk
0:00:01.8]} 51... Rxh4 {[%clk 0:00:31.9]} 52. Ra8 {[%clk 0:00:01.6]} 52... Kg5
{[%clk 0:00:30.1]} 53. Rc8 {[%clk 0:00:01.7]} 53... Rc4 {[%clk 0:00:29.8]} 54.
Ke3 {[%clk 0:00:01.1]} 54... Kg4 {[%clk 0:00:27.2]} 55. Rg8 {[%clk 0:00:01.8]}
55... g5 {[%clk 0:00:26.8]} 56. Kd3 {[%clk 0:00:02.7]} 56... Rd4+ {[%clk
0:00:26.9]} 57. Ke3 {[%clk 0:00:03.2]} 57... Rf4 {[%clk 0:00:23.8]} 58. Rc8
{[%clk 0:00:03.8]} 58... Rf5 {[%clk 0:00:19.9]} 59. Rc6 {[%clk 0:00:03.4]} 59...
Re5+ {[%clk 0:00:18.8]} 60. Kf2 {[%clk 0:00:03.4]} 60... Kf4 {[%clk 0:00:18.9]}
61. Rc8 {[%clk 0:00:03.8]} 61... g4 {[%clk 0:00:19.1]} 62. Rf8+ {[%clk
0:00:03.9]} 62... Rf5 {[%clk 0:00:19.6]} 63. Rc8 {[%clk 0:00:03.5]} 63... Rg5
{[%clk 0:00:19.3]} 64. Kg2 {[%clk 0:00:03.7]} 64... Ke3 {[%clk 0:00:19.3]} 65.
Kg3 {[%clk 0:00:02.6]} 65... Kd3 {[%clk 0:00:19.5]} 66. Kf4 {[%clk 0:00:03]}
66... Rd5 {[%clk 0:00:18.9]} 67. Kxg4 {[%clk 0:00:02.6]} 67... c4 {[%clk
0:00:19]} 68. Kf3 {[%clk 0:00:03.3]} 68... c3 {[%clk 0:00:19.1]} 69. Kf2 {[%clk
0:00:02.5]} 69... Kd2 {[%clk 0:00:19]} 0-1